bitfinex/quotes_ETHUSD_20220118
["timestamp","ask_amount","ask_price","bid_price","bid_amount"]
[1642526389796,0.79984,3126.5,3126.2,1.43699246]
[1642526389996,1.09984,3126.5,3126.2,1.43699246]
[1642526390596,1.89966,3126.5,3126.2,1.43699246]
[1642526391403,2.6994997,3126.5,3126.2,1.43699246]
[1642526392001,1.89966,3126.5,3126.2,1.43699246]
[1642526392252,1.89966,3126.5,3126.1,0.00170527]
[1642526392448,1.59972,3126.4,3126.1,0.00170527]
[1642526392648,0.3,3126.3,3126.1,0.00170527]
[1642526392850,0.79994,3126.3,3126.1,0.00170527]
[1642526393047,0.00113684,3126.6,3126.1,0.00170527]
[1642526393250,0.79974,3126.4,3126.2,0.79973]
[1642526393650,0.79974,3126.4,3126.2,2.32207027]
[1642526395049,0.3,3126.3,3126.2,2.32207027]
[1642526395250,0.79974,3126.4,3126.2,2.32207027]
[1642526395450,0.79974,3126.4,3126.2,2.32320712]
[1642526397702,0.79974,3126.4,3126.2,1.52347712]
[1642526399743,0.79974,3126.4,3126.2,4.06202292]
[1642526400345,0.79974,3126.4,3126.2,1.52347712]
[1642526400946,0.79974,3126.4,3126.2,4.04534047]
[1642526401148,0.79974,3126.4,3126.2,1.52347712]
[1642526401751,0.00113684,3126.6,3126.3,2.51350822]
[1642526401956,0.00113684,3126.6,3126.4,18.81]
[1642526402150,0.00113684,3126.6,3126.5,24.8879]
[1642526402352,0.00113684,3126.6,3126.5,24.76]
[1642526402551,3.684e-05,3126.6,3126.5,24.76]
[1642526402751,3.684e-05,3126.6,3126.5,25.219]
[1642526402951,3.684e-05,3126.6,3126.5,26.9943071]
[1642526403505,3.684e-05,3126.6,3126.5,25.3469]
[1642526403699,3.684e-05,3126.6,3126.5,26.14641]
[1642526403898,3.684e-05,3126.6,3126.5,27.52085131]
[1642526404503,3.684e-05,3126.6,3126.5,33.90089562]
[1642526404901,3.684e-05,3126.6,3126.5,32.52645431]
[1642526405500,3.684e-05,3126.6,3126.5,28.44965615]
[1642526406203,3.684e-05,3126.6,3126.5,29.44965615]
[1642526406705,3.684e-05,3126.6,3126.5,28.44965615]
[1642526407108,3.684e-05,3126.6,3126.5,30.71255071]
[1642526407345,3.684e-05,3126.6,3126.5,35.88583181]
[1642526408746,3.684e-05,3126.6,3126.5,34.62293725]
[1642526408946,3.684e-05,3126.6,3126.5,34.03756452]
[1642526409548,3.684e-05,3126.6,3126.5,33.90966452]
[1642526410351,0.1279,3127.8,3126.5,33.90966452]
[1642526410352,0.1279,3127.8,3126.6,5.95]
[1642526410553,1.59897,3127.6,3127.5,1.11690412]
[1642526411000,1.59897,3127.6,3127.1,2.59709064]
[1642526411195,1.59897,3127.6,3126.8,18.9378]
[1642526411196,1.59897,3127.6,3127.3,2.03171923]
[1642526411396,0.00511582,3127.5,3127.3,2.03171923]
[1642526411796,0.00454739,3127.4,3127.3,2.03171923]
[1642526411997,0.00454739,3127.4,3127.3,3.63059923]
[1642526412399,0.00454739,3127.4,3127.3,4.9891412]
[1642526412801,0.00454739,3127.4,3127.3,1.59888]
[1642526412998,0.00454739,3127.4,3127.2,1.59894]
[1642526412999,0.79955,3127.3,3127.2,1.59894]
[1642526413498,0.00397897,3127.3,3127.2,1.59894]
[1642526413900,0.00397897,3127.3,3127.2,3.41942482]
[1642526414959,0.00397897,3127.3,3127.2,5.66942482]
[1642526415356,0.00397897,3127.3,3127.2,3.41942482]
[1642526416760,0.00397897,3127.3,3127.1,2.76424971]
[1642526416964,1.60316897,3127.3,3127.1,2.76424971]
[1642526417160,0.00341055,3127.2,3127.1,2.76424971]
[1642526418164,0.00341055,3127.2,3127.1,1.59898]
[1642526418363,0.00341055,3127.2,3126.4,3.769]
[1642526418364,0.02966037,3127.1,3126.5,0.459]
[1642526418595,0.79968,3127.1,3126.2,3.79063685]
[1642526418897,0.0022737,3127.0,3126.2,0.12903685]
[1642526419095,0.0022737,3127.0,3126.3,0.00170526]
[1642526419296,0.00170528,3126.9,3126.5,1.72479091]
[1642526419696,0.80083685,3126.8,3126.5,2.52452091]
[1642526420097,0.80083685,3126.8,3126.5,0.79973]
[1642526420295,0.3,3126.7,3126.5,0.79973]
[1642526420696,1.09977,3126.7,3126.3,2.71991256]
[1642526420897,1.09977,3126.7,3126.6,2.7182073]
[1642526420898,1.17767,3126.7,3126.6,2.7182073]
[1642526421898,1.17767,3126.7,3126.4,0.00113684]
[1642526422102,1.04977,3126.7,3126.4,0.00113684]
[1642526422351,0.1279,3127.1,3126.4,0.00113684]
[1642526422553,0.1279,3127.1,3126.7,0.0123849]
[1642526422756,0.1279,3127.1,3126.8,1.12993909]
[1642526422757,0.00113685,3127.0,3126.8,1.12993909]
[1642526422951,0.00113685,3127.0,3126.9,0.5869]
[1642526423555,0.00113685,3127.0,3126.9,0.459]
[1642526423953,0.00113685,3127.0,3126.9,6.109]
[1642526424353,0.00113685,3127.0,3126.9,8.8272073]
[1642526425359,0.00113685,3127.0,3126.9,8.9551073]
[1642526426998,0.00113685,3127.0,3126.9,3.3051073]
[1642526427199,0.00113685,3127.0,3126.9,2.7182073]
[1642526429200,1.52764932,3127.2,3127.0,3.4]
[1642526429403,1.52764932,3127.2,3127.0,4.19962]
[1642526429599,2.32729052,3127.2,3127.0,4.19962]
[1642526429849,2.62729052,3127.2,3127.0,4.19962]
[1642526430658,1.82764932,3127.2,3127.0,4.19962]
[1642526432757,1.82764932,3127.2,3127.1,2.71797882]
[1642526432958,1.09948,3127.2,3127.1,2.71797882]
[1642526433160,1.10061685,3127.2,3127.1,2.71797882]
[1642526433796,1.10061685,3127.2,3127.1,4.81797882]
[1642526433999,1.10061685,3127.2,3127.1,2.71797882]
[1642526434199,0.30113685,3127.2,3127.1,2.71797882]
[1642526436705,0.30113685,3127.2,3127.0,0.79962]
[1642526436904,1.90032685,3127.2,3127.0,0.79962]
[1642526437346,1.90032685,3127.2,3127.1,5.21797228]
[1642526437547,2.69992685,3127.2,3127.1,5.21797228]
[1642526438551,2.69992685,3127.2,3127.1,2.71797228]
[1642526439754,1.60032685,3127.2,3127.1,2.71797228]
[1642526441405,1.90032685,3127.2,3127.1,2.71797228]
[1642526441605,2.02822685,3127.2,3127.1,2.71797228]
[1642526442005,3.94234683,3127.2,3127.1,2.71797228]
[1642526442207,4.74202093,3127.2,3126.6,0.1279]
[1642526442407,0.9277,3127.1,3126.6,0.1279]
[1642526442606,0.9277,3127.1,3126.7,1.13858185]
[1642526442607,1.09979,3127.0,3126.7,1.13858185]
[1642526442807,0.1279,3126.9,3126.7,1.13858185]
[1642526443007,0.1279,3126.9,3126.8,0.00113685]
[1642526443612,0.9276965,3126.9,3126.8,0.00113685]
[1642526444210,1.7274965,3126.9,3126.6,0.1279]
[1642526444416,1.13810605,3126.8,3126.0,0.0022392]
[1642526444613,2.0278,3126.7,3126.0,0.0022392]
[1642526444844,0.7999677,3126.6,3126.1,0.00397896]
[1642526445045,0.1279,3126.5,3126.1,0.00397896]
[1642526445449,0.92783,3126.5,3126.1,0.00397896]
[1642526445647,3.9276853,3126.5,3126.1,0.00397896]
[1642526445847,4.7276083,3126.5,3126.1,0.00397896]
[1642526446449,0.79994,3126.4,3126.1,0.00397896]
[1642526446851,1.09987,3126.3,3126.1,0.00397896]
[1642526447650,1.09987,3126.3,3126.1,1.35694677]
[1642526448048,1.09987,3126.3,3126.2,0.00341054]
[1642526448049,0.79987,3126.3,3126.2,0.00341054]
[1642526448530,0.79993,3126.5,3126.2,0.00341054]
[1642526448726,1.1334,3126.8,3126.4,2.50440704]
[1642526448926,2.39955,3127.1,3126.5,8.55169622]
[1642526449121,3.6004,3127.3,3126.5,8.55340149]
[1642526449122,0.7996,3126.9,3126.5,8.55340149]
[1642526449323,3.19824,3127.3,3126.6,0.00113684]
[1642526449624,3.19824,3127.3,3126.7,1.13751996]
[1642526449824,0.00170527,3127.1,3126.8,0.79957]
[1642526450022,0.00170527,3127.1,3126.9,1.98335446]
[1642526450224,0.00113685,3127.0,3126.9,1.98335446]
[1642526450626,0.00113685,3127.0,3126.9,4.83335446]
[1642526451024,0.00113685,3127.0,3126.9,6.43248446]
[1642526452026,0.00113685,3127.0,3126.9,4.44913]
[1642526457403,0.00113685,3127.0,3126.9,1.59913]
[1642526458406,0.00113685,3127.0,3126.9,4.64913]
[1642526461664,1.09957,3127.2,3126.9,4.64913]
[1642526461869,1.59912,3127.3,3127.0,8.55168654]
[1642526462064,0.0047204,3127.7,3127.1,0.82516451]
[1642526462265,3.685e-05,3127.2,3127.1,1.3863041]
[1642526462464,3.685e-05,3127.2,3127.1,28.74689064]
[1642526462664,0.00231054,3127.6,3127.1,26.1463041]
[1642526462864,0.00231054,3127.6,3127.1,27.7450041]
[1642526463067,0.00174212,3127.5,3127.1,27.7450041]
[1642526463265,0.00174212,3127.5,3127.3,1.44747175]
[1642526463507,0.0047204,3127.7,3127.4,6.0779]
[1642526463707,3.738762,3128.6,3127.6,18.81]
[1642526463907,3.738762,3128.6,3127.7,2.72838654]
[1642526464110,3.738762,3128.6,3127.8,18.81]
[1642526464307,0.003162,3128.6,3127.9,3.41979867]
[1642526464511,0.003162,3128.6,3127.9,23.02893677]
[1642526464707,0.003162,3128.6,3128.2,1.10565361]
[1642526464907,0.003162,3128.6,3128.3,2.65090686]
[1642526465107,0.003162,3128.6,3128.3,3.46840686]
[1642526465506,0.003162,3128.6,3128.4,0.459]
[1642526465707,0.003162,3128.6,3128.4,2.0571165]
[1642526465905,0.003162,3128.6,3128.5,8.40844066]
[1642526466109,0.003162,3128.6,3128.5,8.99524066]
[1642526466310,0.01115678,3128.6,3128.5,8.99524066]
[1642526467948,5.678e-05,3128.6,3128.5,8.99524066]
[1642526468149,0.0018004,3129.4,3128.6,5.95]
[1642526468349,0.0018004,3129.4,3128.7,2.1846279]
[1642526468549,0.0018004,3129.4,3128.8,18.81]
[1642526468550,0.00284211,3129.1,3128.8,18.81]
[1642526468751,0.00284211,3129.1,3128.9,0.5868]
[1642526468950,0.00227369,3129.0,3128.9,3.61476003]
[1642526469354,0.00227369,3129.0,3128.9,5.21257003]
[1642526469756,0.00227369,3129.0,3128.9,5.08477003]
[1642526470455,0.00227369,3129.0,3128.9,7.93477003]
[1642526470853,0.00227369,3129.0,3128.9,5.08477003]
[1642526471507,0.00227369,3129.0,3128.9,3.48696003]
[1642526471708,0.00227369,3129.0,3128.9,1.86612951]
[1642526472110,0.13007369,3129.0,3128.9,1.86612951]
[1642526472716,0.13007369,3129.0,3128.9,3.40756227]
[1642526473116,0.00227369,3129.0,3128.9,3.40756227]
[1642526474514,0.00227369,3129.0,3128.9,1.47563501]
[1642526474749,0.13007369,3129.0,3128.2,1.59837]
[1642526474955,0.79926,3128.8,3128.2,1.59837]
[1642526475151,1.09926,3128.8,3128.3,0.00170528]
[1642526475553,1.09926,3128.8,3128.6,2.18162481]
[1642526475751,1.09926,3128.8,3128.3,0.00170528]
[1642526475752,1.62361864,3128.7,3128.3,0.00170528]
[1642526475951,0.1278,3128.7,3128.3,0.00170528]
[1642526476157,1.7264,3128.7,3128.2,0.0022737]
[1642526476358,0.92707,3128.7,3128.2,0.0022737]
[1642526476956,0.92707,3128.7,3128.6,1.10362417]
[1642526477757,0.1278,3128.7,3128.6,1.10362417]
[1642526477956,0.80103527,3128.9,3128.6,1.10362417]
[1642526478156,0.00170527,3128.9,3128.6,1.10362417]
[1642526478355,0.00113684,3128.8,3128.6,1.10362417]
[1642526478911,0.33336631,3129.4,3128.7,3.2581453]
[1642526478912,0.00341054,3129.2,3128.7,3.2581453]
[1642526479310,0.00397896,3129.3,3128.7,3.2581453]
[1642526479711,0.00341054,3129.2,3128.7,3.2581453]
[1642526479910,0.00341054,3129.2,3128.7,0.79903]
[1642526480113,0.00397896,3129.3,3128.7,0.79903]
[1642526480311,0.79902,3129.2,3129.1,1.49785992]
[1642526480512,0.80243054,3129.2,3129.1,1.49785992]
[1642526482010,0.80243054,3129.2,3129.0,2.26207334]
[1642526482256,0.80243054,3129.2,3128.3,1.72612]
[1642526482257,2.40090054,3129.2,3128.3,1.72612]
[1642526482456,0.79926,3129.0,3128.3,1.72612]
[1642526482664,0.79926,3128.9,3128.4,0.00113685]
[1642526482858,0.80096527,3128.9,3128.4,0.00113685]
[1642526483061,0.79926,3128.9,3128.8,1.1301839]
[1642526483463,0.80096527,3128.9,3128.8,1.1301839]
[1642526484665,0.00170527,3128.9,3128.4,0.00113685]
[1642526484966,1.59967684,3128.8,3128.4,0.00113685]
[1642526485366,2.39892684,3128.8,3128.4,0.00113685]
[1642526485565,2.39892684,3128.8,3128.5,2.0698755]
[1642526485767,0.1278,3128.7,3128.5,2.0698755]
[1642526486014,0.1278,3128.7,3128.6,3.28402079]
[1642526486207,0.92705,3128.7,3128.6,1.13402079]
[1642526487408,0.79925,3128.7,3128.6,1.13402079]
[1642526488010,0.80038684,3128.8,3128.6,1.13402079]
[1642526488212,0.80038684,3128.8,3128.6,2.73224079]
[1642526489510,0.80038684,3128.8,3128.6,1.13402079]
[1642526489751,0.3,3128.7,3128.6,1.13402079]
[1642526490151,0.30800429,3128.7,3128.6,1.13402079]
[1642526492051,0.30800429,3128.7,3128.6,3.93402079]
[1642526493054,0.30800429,3128.7,3128.6,1.13402079]
[1642526497954,0.00800429,3128.7,3128.6,4.48402079]
[1642526498157,0.00800429,3128.7,3128.6,5.28323079]
[1642526498956,0.00800429,3128.7,3128.6,1.13402079]
[1642526501199,0.00800429,3128.7,3128.5,2.0698755]
[1642526502000,0.30800429,3128.7,3128.4,1.59947685]
[1642526502199,1.2907743,3128.6,3128.4,1.59947685]
[1642526502400,1.2907743,3128.6,3128.0,3.00773251]
[1642526502401,1.5907743,3128.6,3128.0,1.59853]
[1642526502605,1.5907743,3128.6,3127.7,3.93281375]
[1642526502606,2.24663566,3128.5,3127.7,3.93281375]
[1642526502804,3.05163566,3128.5,3128.1,0.00170527]
[1642526503001,5.4,3128.4,3127.7,3.93281375]
[1642526503202,0.04062944,3128.2,3127.9,1.77970668]
[1642526503406,0.04062944,3128.2,3128.0,2.01373066]
[1642526503407,0.1278,3128.1,3128.0,2.01373066]
[1642526503603,1.4278,3128.1,3128.0,2.01373066]
[1642526503806,0.1278,3128.1,3128.0,2.01373066]
[1642526504750,1.59934,3128.2,3128.0,2.01373066]
[1642526504955,0.1278,3128.1,3128.0,2.01373066]
[1642526505154,1.72714,3128.2,3128.0,2.01373066]
[1642526505755,2.5266308,3128.2,3128.0,2.01373066]
[1642526506254,2.3988308,3128.2,3128.0,2.01373066]
[1642526507657,1.59934,3128.2,3128.0,2.01373066]
[1642526508611,3.19979684,3128.3,3128.1,2.59597473]
[1642526508612,0.00113684,3128.3,3128.1,2.59597473]
[1642526508807,0.00113684,3128.3,3128.2,3.35]
[1642526509211,0.00113684,3128.3,3128.2,4.79419268]
[1642526510014,0.00113684,3128.3,3128.2,5.59337268]
[1642526510212,0.00113684,3128.3,3128.2,8.06985482]
[1642526510613,0.00113684,3128.3,3128.2,10.78691385]
[1642526514157,0.00113684,3128.3,3128.2,11.78691385]
[1642526514560,3.684e-05,3128.3,3128.2,11.78691385]
[1642526514758,3.684e-05,3128.3,3128.2,9.31043171]
[1642526514959,3.684e-05,3128.3,3128.2,28.12043171]
[1642526515160,0.1278,3129.3,3128.3,5.9508]
[1642526515359,0.0018004,3129.4,3128.6,0.79899]
[1642526515559,0.00341055,3128.9,3128.6,0.79899]
[1642526515761,0.00341055,3128.9,3128.7,3.31942157]
[1642526516002,0.00284212,3128.8,3128.7,3.31942157]
[1642526516806,0.00284212,3128.8,3128.7,6.0364806]
[1642526517008,0.00284212,3128.8,3128.7,8.5338561]
[1642526517610,0.00284212,3128.8,3128.7,10.1318761]
[1642526518611,0.00284212,3128.8,3128.7,7.6345006]
[1642526519016,0.00284212,3128.8,3128.7,10.05561005]
[1642526519210,0.00284212,3128.8,3128.7,7.6345006]
[1642526519411,0.00284212,3128.8,3128.7,10.03860735]
[1642526520653,0.00284212,3128.8,3128.7,11.03860735]
[1642526521459,0.00284212,3128.8,3128.7,10.03860735]
[1642526523704,0.0018004,3129.4,3128.8,5.95]
[1642526523910,0.0018004,3129.4,3129.0,0.798888]
[1642526524109,0.00284212,3129.3,3129.1,3.38519416]
[1642526524511,0.0022737,3129.2,3129.1,3.38519416]
[1642526524710,0.0022737,3129.2,3129.1,22.19519416]
[1642526524911,0.0022737,3129.2,3129.1,20.60889]
[1642526525912,0.0022737,3129.2,3129.1,1.79889]
[1642526526312,0.0022737,3129.2,3129.1,4.51510962]
[1642526527114,0.0022737,3129.2,3129.1,23.32510962]
[1642526528970,0.0022737,3129.2,3129.1,22.32510962]
[1642526530171,0.01027414,3129.2,3129.1,22.32510962]
[1642526532416,0.01027414,3129.2,3129.1,3.51510962]
[1642526533418,0.01027414,3129.2,3129.1,0.79889]
[1642526534756,0.01027414,3129.2,3129.1,2.89889]
[1642526535361,0.01027414,3129.2,3129.1,0.79889]
[1642526535560,0.01027414,3129.2,3129.1,2.89889]
[1642526537366,0.01027414,3129.2,3129.1,0.79889]
[1642526538604,0.01027414,3129.2,3129.1,3.09889]
[1642526539912,0.01027414,3129.2,3129.1,0.79889]
[1642526543060,0.31027414,3129.2,3129.1,0.79889]
[1642526544861,0.01027414,3129.2,3129.1,0.79889]
[1642526545064,0.31027414,3129.2,3129.1,0.79889]
[1642526546610,0.31027414,3129.2,3129.0,1.60807]
[1642526546810,1.90859414,3129.2,3129.0,1.60807]
[1642526547011,0.00170527,3129.1,3129.0,1.60807]
[1642526547211,0.12950527,3129.1,3129.0,1.60807]
[1642526548612,0.00170527,3129.1,3129.0,1.60807]
[1642526550269,0.00970571,3129.1,3129.0,1.60807]
[1642526550665,0.00970571,3129.1,3129.0,4.32425749]
[1642526552368,0.00970571,3129.1,3129.0,2.72618749]
[1642526552568,0.13750571,3129.1,3129.0,2.72618749]
[1642526552772,0.13750571,3129.1,3129.0,0.01]
[1642526553171,0.93678571,3129.1,3128.7,2.08488258]
[1642526553521,1.0992774,3128.9,3128.7,2.08488258]
[1642526553711,0.1278,3128.8,3128.4,2.74197329]
[1642526554110,0.1278,3128.8,3128.5,0.00170527]
[1642526554511,0.92708,3128.8,3128.5,0.00170527]
[1642526554712,0.92708,3128.8,3128.6,1.68266604]
[1642526554912,0.79928,3128.8,3128.6,1.68266604]
[1642526555316,0.79928,3128.8,3128.5,0.00170527]
[1642526555515,0.3,3128.7,3128.5,2.71841192]
[1642526555813,3.1259458,3128.7,3128.6,0.00113684]
[1642526556015,3.1259458,3128.7,3128.4,0.003162]
[1642526556417,0.7993679,3128.6,3128.4,0.003162]
[1642526556816,1.0993679,3128.6,3128.4,0.003162]
[1642526557016,5.0678038,3128.6,3128.1,1.49545236]
[1642526557257,5.0678038,3128.6,3127.7,0.1278]
[1642526557258,1.59891,3128.4,3127.7,0.1278]
[1642526557460,1.2272722,3128.3,3128.2,0.0022737]
[1642526557656,0.4278,3128.3,3128.2,0.0022737]
[1642526558057,1.22728,3128.3,3128.2,0.0022737]
[1642526558756,2.82625,3128.3,3127.8,2.0333393]
[1642526558956,1.5989908,3128.2,3127.8,0.00454739]
[1642526559156,2.6984708,3128.2,3127.9,0.00397897]
[1642526559358,1.8989708,3128.2,3127.6,1.31003124]
[1642526559557,1.89898,3128.1,3127.6,1.31003124]
[1642526559757,1.89898,3128.1,3127.7,0.00511582]
[1642526560158,1.599016,3128.0,3127.7,0.00511582]
[1642526560364,1.59896,3128.0,3127.7,0.00511582]
[1642526560558,1.59896,3128.0,3127.7,0.80456582]
[1642526561011,1.59896,3128.0,3127.8,0.00454739]
[1642526561208,1.90698044,3128.1,3127.8,0.00454739]
[1642526561209,0.30800044,3128.1,3127.8,4.12403362]
[1642526561408,0.00800044,3128.1,3127.9,0.1278]
[1642526561707,0.00800044,3128.1,3128.0,5.95341055]
[1642526564511,0.00800044,3128.1,3128.0,8.43225101]
[1642526564953,0.00800044,3128.1,3128.0,8.56005101]
[1642526565855,0.00800044,3128.1,3128.0,8.43225101]
[1642526567460,0.00800044,3128.1,3128.0,5.95341055]
[1642526569115,0.00800044,3128.1,3128.0,8.41117442]
[1642526569517,0.00800044,3128.1,3128.0,5.95341055]
[1642526570120,0.00800044,3128.1,3128.0,8.39064751]
[1642526570321,0.00800044,3128.1,3128.0,5.95341055]
[1642526574058,0.00800044,3128.1,3128.0,8.40943482]
[1642526574260,4.4e-07,3128.1,3128.0,8.40943482]
[1642526574458,0.1278,3128.6,3128.0,9.53723482]
[1642526574658,0.1278,3128.6,3128.1,20.19586]
[1642526574859,0.1278,3128.6,3128.2,2.80408076]
[1642526575059,0.1278,3128.6,3128.2,3.26308076]
[1642526575259,0.1278,3128.6,3128.3,0.00170528]
[1642526575460,0.1278,3128.6,3128.4,3.23227828]
[1642526575659,0.1278,3128.6,3128.5,8.27420826]
[1642526575860,0.1278,3128.6,3128.5,7.86512281]
[1642526576313,0.1278,3128.6,3128.5,5.84904]
[1642526576711,0.1278,3128.6,3128.5,6.6480535]
[1642526577313,0.1278,3128.6,3128.5,9.36431173]
[1642526578314,0.1278,3128.6,3128.5,13.07083033]
[1642526580261,0.00113685,3129.0,3128.5,14.07083033]
[1642526580467,0.00113685,3129.0,3128.6,21.55254538]
[1642526580665,0.00170527,3128.9,3128.7,0.1278]
[1642526580865,0.00170527,3128.9,3128.7,18.9378]
[1642526581065,0.0018004,3129.4,3128.8,6.95]
[1642526581270,0.0018004,3129.4,3129.0,18.81]
[1642526581465,0.00227369,3129.3,3129.1,1.4636353]
[1642526581664,0.00227369,3129.3,3129.1,2.4636353]
[1642526581867,0.0018004,3129.4,3129.1,2.4636353]
[1642526581868,0.00170527,3129.2,3129.1,2.4636353]
[1642526582165,0.00170527,3129.2,3129.1,4.8136353]
[1642526582765,0.00170527,3129.2,3129.1,5.6125153]
[1642526582966,0.00170527,3129.2,3129.1,8.32877353]
[1642526584010,0.00170527,3129.2,3129.1,8.20097353]
[1642526590159,0.00170527,3129.2,3129.1,4.85097353]
[1642526590558,0.00170527,3129.2,3129.1,2.71625823]
[1642526591011,0.00170527,3129.2,3128.9,3.00384695]
[1642526591210,0.00170527,3129.2,3128.9,2.20470695]
[1642526591409,0.00113684,3129.1,3128.9,2.20470695]
[1642526591612,1.89953684,3129.1,3128.9,2.20470695]
[1642526592409,2.69873684,3129.1,3128.9,2.20470695]
[1642526592609,4.14054148,3129.1,3128.9,2.20470695]
[1642526592810,2.96861053,3129.0,3128.9,2.20470695]
[1642526593011,0.1278,3129.0,3128.9,2.20470695]
[1642526595957,0.1278,3129.0,3128.9,5.75470695]
[1642526596160,0.00113684,3129.1,3128.9,5.75470695]
[1642526597062,0.00113684,3129.1,3129.0,7.11985307]
[1642526598264,0.00113684,3129.1,3129.0,9.83585606]
[1642526598509,0.00113684,3129.1,3129.0,10.63479606]
[1642526598903,0.00113684,3129.1,3129.0,13.10655039]
[1642526599405,0.00113684,3129.1,3129.0,10.63479606]
[1642526602452,0.0018004,3129.4,3129.0,10.63479606]
[1642526602752,0.00113685,3129.3,3129.2,0.79894]
[1642526602952,0.00113685,3129.3,3129.2,3.39894]
[1642526603152,1.59809,3129.6,3129.2,0.79894]
[1642526603551,0.0022737,3129.5,3129.2,0.79894]
[1642526603752,0.8012837,3129.5,3129.2,0.79894]
[1642526603952,0.00170527,3129.4,3129.2,0.79894]
[1642526609008,0.00170527,3129.4,3129.2,0.527335]
[1642526610661,0.00170527,3129.4,3129.2,0.377335]
[1642526611068,0.00170527,3129.4,3129.2,0.31452659]
[1642526619960,0.80081357,3129.4,3129.2,0.31452659]
[1642526621212,0.80081357,3129.4,3129.0,2.76795307]
[1642526621213,0.79911,3129.3,3129.0,2.76795307]
[1642526621611,0.3,3129.2,3129.0,2.76795307]
[1642526622012,0.3,3129.3,3129.1,2.7162195]
[1642526622313,1.0990966,3129.3,3129.1,2.7162195]
[1642526622513,1.59819,3129.2,3129.1,2.7162195]
[1642526622915,1.89819,3129.2,3129.1,2.7162195]
[1642526623916,1.59819,3129.2,3129.1,2.7162195]
[1642526624115,1.89819,3129.2,3129.1,2.7162195]
[1642526625365,1.59819,3129.2,3129.1,2.7162195]
[1642526627768,1.59819,3129.2,3129.1,2.06018243]
[1642526627769,2.02599,3129.2,3129.1,2.06018243]
[1642526627970,0.81959772,3129.1,3128.9,2.20470695]
[1642526628266,6.98496,3129.0,3128.8,0.1378]
[1642526628517,0.3,3128.9,3128.8,0.1378]
[1642526628707,3.0778,3128.9,3128.8,0.1378]
[1642526628908,0.4278,3128.9,3128.8,0.13950527]
[1642526629111,1.92462173,3128.9,3128.8,0.13950527]
[1642526631715,1.92462173,3128.9,3128.6,1.73207837]
[1642526631915,1.92462173,3128.9,3128.6,1.69311215]
[1642526631916,3.1972621,3128.8,3128.6,1.69311215]
[1642526632116,0.3,3128.7,3128.6,1.69311215]
[1642526632363,0.79942,3128.5,3127.8,0.1278]
[1642526632564,5.87580132,3128.4,3127.5,0.130478]
[1642526632764,6.00360132,3128.4,3127.9,0.00511581]
[1642526633063,0.7995103,3128.2,3127.9,0.00511581]
[1642526633267,3.9366879,3128.2,3128.0,1.74196122]
[1642526633463,0.6,3128.1,3128.0,1.74196122]
[1642526633663,0.9778,3128.1,3128.0,1.74196122]
[1642526633862,1.9778,3128.1,3128.0,1.74196122]
[1642526635063,1.9778,3128.1,3127.6,1.25029654]
[1642526635266,0.92735,3128.0,3127.5,0.002678]
[1642526635464,0.7996848,3127.9,3127.7,0.00625266]
[1642526635667,0.1278,3127.8,3127.5,0.002678]
[1642526635869,1.25,3127.8,3127.5,0.002678]
[1642526636119,1.55,3127.8,3127.6,2.00344984]
[1642526636320,3.14949,3127.8,3127.6,2.00344984]
[1642526636518,3.14949,3127.8,3127.5,0.002678]
[1642526636519,1.79976,3127.7,3127.5,0.002678]
[1642526636717,1.79976,3127.7,3127.5,0.0017552]
[1642526636718,5.2778,3127.6,3127.5,0.0017552]
[1642526636918,5.5778,3127.6,3127.5,0.0017552]
[1642526637119,2.45,3127.5,3126.7,0.00171]
[1642526637320,0.1279,3127.4,3126.7,0.00171]
[1642526637518,0.3,3127.2,3126.9,1.68197099]
[1642526637720,0.1279,3127.1,3126.9,1.68197099]
[1642526637918,1.1349,3127.1,3127.0,0.00284212]
[1642526638118,2.1349,3127.1,3127.0,0.00284212]
[1642526638521,4.65,3127.0,3126.7,0.00171]
[1642526638720,3.05385869,3126.9,3126.7,0.00171]
[1642526638918,4.35385869,3126.9,3126.8,0.00113685]
[1642526639118,2.22787,3126.9,3126.8,0.00113685]
[1642526639318,1.22787,3126.9,3126.8,0.00113685]
[1642526639871,1.22787,3126.9,3126.8,1.3160259]
[1642526640262,1.09997,3126.9,3126.8,0.00113685]
[1642526640660,1.5999368,3126.9,3126.8,0.00113685]
[1642526640864,3.44,3127.2,3126.8,0.12903685]
[1642526640865,3.3121,3127.2,3126.8,0.12903685]
[1642526641081,1.1478,3127.4,3126.9,0.1279]
[1642526641266,0.27639994,3127.6,3126.9,0.1279]
[1642526641465,0.00113685,3127.2,3126.9,0.1279]
[1642526641865,0.00113685,3127.2,3127.1,1.90646383]
[1642526642066,0.00113685,3127.2,3127.1,2.03436383]
[1642526642465,0.27639994,3127.6,3127.1,2.03436383]
[1642526642466,0.79959,3127.4,3127.1,2.03436383]
[1642526643519,0.79959,3127.4,3127.1,0.1279]
[1642526643718,0.7997,3127.3,3127.1,0.1279]
[1642526644112,1.8993909,3127.3,3127.1,0.1279]
[1642526644313,2.2961909,3127.3,3127.1,0.1279]
[1642526644515,3.63588989,3127.2,3127.1,0.1279]
[1642526644713,5.47738041,3127.2,3127.1,0.1279]
[1642526644913,1.17299598,3127.1,3126.8,0.00113685]
[1642526645113,2.87691478,3127.0,3126.8,0.00113685]
[1642526645313,3.67684668,3127.0,3126.8,0.0022737]
[1642526645514,3.67684668,3127.0,3126.7,0.00171]
[1642526645713,1.59987,3126.9,3126.7,0.00171]
[1642526645920,2.10337112,3126.8,3125.8,2.09226027]
[1642526646117,3.7195082,3126.7,3126.0,0.0016196]
[1642526646422,0.7999702,3126.6,3126.1,0.00397896]
[1642526646618,1.59999,3126.5,3126.1,0.00397896]
[1642526646816,2.36729,3126.5,3126.2,1.50650866]
[1642526647017,2.66729,3126.5,3126.2,1.50650866]
[1642526647265,4.2672501,3126.5,3126.3,0.00284211]
[1642526647666,4.85,3126.4,3126.3,0.00284211]
[1642526647867,1.0,3126.4,3126.3,0.00284211]
[1642526648470,3.33002075,3126.4,3126.3,0.00284211]
[1642526648872,3.45792075,3126.4,3126.3,0.00284211]
[1642526649074,4.90864204,3126.4,3126.3,0.00284211]
[1642526649271,4.9302567,3126.4,3126.3,0.00284211]
[1642526650073,7.80924308,3126.4,3126.3,0.00284211]
[1642526650572,2.8,3126.3,3126.0,0.0016196]
[1642526650773,0.8001,3126.2,3126.0,0.0016196]
[1642526651022,4.79559549,3126.2,3126.1,0.00113685]
[1642526651219,1.9001827,3126.2,3126.1,0.00113685]
[1642526651619,2.1266827,3126.2,3126.1,0.00113685]
[1642526652018,5.3766827,3126.2,3126.1,0.00113685]
[1642526652220,1.3265827,3126.2,3126.1,0.00113685]